fUSD/lending_fUSD_20241106
["ID","MTS","AMOUNT","RATE_DAILY","PERIOD"]
[341456406,1730904640446,-3741.23996809,0.00035386,2]
[341456407,1730904640460,-370.27,0.00035386,2]
[341456679,1730904643196,-1456.32160157,0.00035386,2]
[341456682,1730904643210,-518.4147813,0.00035386,2]
[341456732,1730904643684,-30.52969321,0.00035386,2]
[341456978,1730904646219,-74379.84081,0.00035386,2]
[341456983,1730904646253,-11216.5884,0.00035386,2]
[341456988,1730904646292,-300.0,0.00035386,2]
[341456992,1730904646330,-501.83463108,0.00035386,2]
[341456994,1730904646341,-150.0,0.00035392,2]
[341456997,1730904646355,-1002.83,0.00035448,2]
[341456999,1730904646366,-249.022,0.00035452,42]
[341457001,1730904646377,-83.81336892,0.00035481,2]
[341457062,1730904646963,-66.18663108,0.00035481,2]
[341457064,1730904646973,-600.0,0.000355,12]
[341457066,1730904646982,-453.97275992,0.0003551,2]
[341457698,1730904661980,300.0,0.00019725,2]
[341457699,1730904662757,420.0,0.00021484,2]
[341457700,1730904663528,587.0,0.00023401,2]
[341457701,1730904664269,823.0,0.00025488,2]
[341457702,1730904665029,1020.0,0.00027761,2]
[341457703,1730904672469,150.0,0.00018123,2]
[341457705,1730904755547,161.0,0.00015342,2]
[341457707,1730905203196,150.0,0.00015342,2]
[341457708,1730905203709,150.0,0.00015342,2]
[341457709,1730905203776,150.0,0.00015342,2]
[341457710,1730905203887,150.0,0.00015342,2]
[341457711,1730905204131,150.0,0.00015342,2]
[341457712,1730905204398,150.0,0.00015342,2]
[341457713,1730905204638,150.0,0.00015342,2]
[341457714,1730905204857,150.0,0.00015342,2]
[341457715,1730905205212,268.15570364,0.00015342,2]
[341457717,1730905291731,157.67,0.00015342,2]
[341457720,1730905552121,-180.62768722,0.00021,2]
[341457721,1730905598519,150.0,0.00020301,2]
[341457722,1730905627085,-69.37231278,0.00021,2]
[341457723,1730905627106,-300.0,0.00023,2]
[341457724,1730905627126,-2101.52,0.00024,10]
[341457725,1730905627146,-333.81310658,0.00024807,2]
[341457726,1730905697432,290.06969227,0.00018123,2]
[341457727,1730905748108,-320.26336196,0.00024832,2]
[341457728,1730905748128,-500.0,0.00024932,2]
[341457729,1730905748149,-500.0,0.00024932,2]
[341457730,1730905748170,-500.0,0.00024932,2]
[341457731,1730905748191,-350.0,0.00025,2]
[341457732,1730905748210,-770.90068204,0.00025,2]
[341457733,1730905756173,-22888.87769748,0.00024807,2]
[341457734,1730905761110,-22808.86319242,0.00024807,2]
[341457735,1730905761562,-3226.16931796,0.00025,2]
[341457736,1730905761584,-150.99,0.00025,2]
[341457737,1730905761606,-6913.99708417,0.00025,2]
[341457738,1730905761626,-157.49,0.00025877,2]
[341457739,1730905761647,-12216.16,0.00025877,2]
[341457740,1730905761668,-150.99,0.00025877,2]
[341457741,1730905761690,-6897.21,0.00025877,2]
[341457742,1730905761709,-999.99,0.00026467,2]
[341457743,1730905761738,-29205.14,0.000266,2]
[341457744,1730905761759,-1776.0,0.000266,2]
[341457745,1730905761780,-400.0,0.00027,2]
[341457746,1730905761801,-1012.44970118,0.00028824,2]
[341457747,1730905761820,-11384.83000406,0.00028825,2]
[341457748,1730905761841,-450.0,0.00029,2]
[341457749,1730905761861,-1416.29,0.00029856,2]
[341457750,1730905761882,-151.0,0.0003,120]
[341457751,1730905761905,-185.09775,0.0003,2]
[341457752,1730905761925,-500.0,0.000307,30]
[341457753,1730905761944,-861.84,0.000307,2]
[341457754,1730905761964,-1810.23536222,0.00030726,2]
[341457755,1730905761991,-185.09775,0.00030959,2]
[341457756,1730905762013,-500.0,0.00031,30]
[341457757,1730905762032,-500.0,0.00031,30]
[341457758,1730905762052,-803.74,0.00031,2]
[341457759,1730905762072,-607.42,0.00031,2]
[341457760,1730905762092,-500.0,0.00031,30]
[341457761,1730905762112,-500.0,0.00031,2]
[341457762,1730905762133,-1237.13,0.00031266,2]
[341457763,1730905762154,-1237.13,0.00031769,2]
[341457764,1730905762173,-397.0,0.00031793,2]
[341457765,1730905762194,-1693.13,0.00031831,2]
[341457766,1730905762213,-1965.13,0.00031857,2]
[341457767,1730905762237,-1000.0,0.0003186,2]
[341457768,1730905762257,-3494.86,0.0003186,2]
[341457769,1730905762277,-250.0,0.00031926,2]
[341457770,1730905762298,-332.85,0.0003196,10]
[341457771,1730905762320,-7358.10623799,0.0003197,2]
[341457772,1730905762387,-6885.193154,0.0003197,2]
[341457773,1730905766139,-580.601354,0.00024682,2]
[341457774,1730905766162,-2744.40060801,0.0003197,2]
[341457775,1730905766181,-157.0,0.00031979,2]
[341457776,1730905766201,-200.0,0.00031984,7]
[341457777,1730905766220,-463.62,0.00032082,2]
[341457778,1730905766247,-1416.29,0.00032119,2]
[341457779,1730905766267,-895.39,0.00032169,2]
[341457780,1730905766285,-2064.66,0.00032188,2]
[341457781,1730905766317,-427.63436125,0.00032271,2]
[341457782,1730905770078,-809.49563875,0.00032271,2]
[341457783,1730905770099,-250.0,0.00032325,2]
[341457784,1730905770119,-250.0,0.00032389,2]
[341457785,1730905770139,-181.03,0.00032515,2]
[341457786,1730905770160,-1237.13,0.00032773,2]
[341457792,1730905828696,157.49,0.0002708,2]
[341457798,1730905832521,-550.0,0.00033,2]
[341457799,1730905832534,-581.51,0.00033204,2]
[341457800,1730905832544,-164.51,0.00033235,2]
[341457801,1730905832554,-1237.13,0.00033276,2]
[341457802,1730905832563,-150.0,0.00033486,2]
[341457803,1730905832572,-4388.82,0.00033691,30]
[341457804,1730905832649,-4502.18,0.00033691,30]
[341457805,1730905832659,-1237.13,0.00033778,2]
[341457806,1730905832668,-903.32843612,0.0003395,2]
[341457807,1730905832678,-7148.24708445,0.00034029,15]
[341457808,1730905832688,-1252.0,0.00034129,2]
[341457809,1730905832697,-1962.4,0.00034129,2]
[341457810,1730905832707,-558.0,0.00034129,2]
[341457811,1730905832719,-1795.0,0.00034129,2]
[341457812,1730905832729,-2907.0,0.00034129,2]
[341457813,1730905832738,-813.0,0.00034129,2]
[341457814,1730905832747,-920.0,0.00034129,2]
[341457815,1730905832757,-1257.0,0.00034129,2]
[341457816,1730905832768,-3377.0,0.00034129,2]
[341457817,1730905832777,-1548.0,0.00034184,2]
[341457818,1730905832788,-158.91,0.00034232,2]
[341457819,1730905832797,-1237.13,0.0003428,2]
[341457820,1730905832806,-166.02,0.00034306,2]
[341457821,1730905832816,-166.02,0.00034324,2]
[341457822,1730905832825,-166.02,0.00034342,2]
[341457823,1730905832834,-166.02,0.0003436,2]
[341457824,1730905832843,-166.02,0.00034378,2]
[341457825,1730905832852,-1416.29,0.00034383,2]
[341457826,1730905832862,-166.02,0.00034396,2]
[341457827,1730905832872,-166.02,0.00034414,2]
[341457828,1730905832881,-166.02,0.00034432,2]
[341457829,1730905832893,-166.02,0.0003445,2]
[341457830,1730905832902,-7148.24708442,0.00034459,15]
[341457831,1730905832911,-166.02,0.00034468,2]
[341457832,1730905832920,-166.02,0.00034486,2]
[341457833,1730905832929,-166.02,0.00034504,2]
[341457834,1730905832940,-166.02,0.00034522,2]
[341457835,1730905832950,-166.02,0.0003454,2]
[341457836,1730905832959,-166.02,0.00034558,2]
[341457837,1730905832969,-166.02,0.00034576,2]
[341457838,1730905832978,-166.02,0.00034595,2]
[341457839,1730905832988,-166.02,0.00034613,2]
[341457840,1730905832998,-166.02,0.00034631,2]
[341457841,1730905833007,-166.02,0.00034649,2]
[341457842,1730905833017,-181.03,0.00034682,2]
[341457843,1730905833027,-1237.13,0.00034783,2]
[341457844,1730905833039,-581.51,0.00034865,2]
[341457845,1730905833048,-7148.24708442,0.00034889,15]
[341457846,1730905833058,-371.58,0.00034932,2]
[341457847,1730905833069,-180.0,0.00034994,2]
[341457848,1730905833078,-1000.0,0.00035,7]
[341457849,1730905833088,-1000.0,0.00035,8]
[341457850,1730905833099,-2000.0,0.00035,2]
[341457851,1730905833109,-2000.0,0.00035,2]
[341457852,1730905833119,-2000.0,0.00035,2]
[341457853,1730905833129,-2000.0,0.00035,2]
[341457854,1730905833139,-2000.0,0.00035,2]
[341457855,1730905833148,-600.0,0.00035,2]
[341457856,1730905833158,-7500.0,0.0003525,2]
[341457857,1730905833168,-7148.24708442,0.00035319,15]
[341457858,1730905833178,-1305.85800046,0.00035358,2]
[341457859,1730905833187,-770.58734516,0.00035421,30]
[341457860,1730905833197,-199.218,0.00035452,42]
[341457861,1730905833207,-1281.75,0.00035467,2]
[341457862,1730905833216,-723.4985,0.00035476,2]
[341457863,1730905833225,-600.0,0.000355,12]
[341457864,1730905833234,-495.38975,0.0003551,2]
[341457865,1730905833244,-150.0,0.00035521,2]
[341457866,1730905833253,-150.0,0.00035528,2]
[341457867,1730905833262,-506.81,0.00035555,3]
[341457868,1730905833271,-64488.223812,0.00035565,5]
[341457870,1730905837105,-6579.4736201,0.00035565,5]
[341457872,1730905837115,-151.0,0.00035578,7]
[341457873,1730905837125,-210.979298,0.00035578,7]
[341457875,1730905837135,-151.0,0.00035578,7]
[341457877,1730905837144,-151.0,0.00035578,7]
[341457879,1730905837154,-151.0,0.00035578,7]
[341457881,1730905837163,-151.0,0.00035578,7]
[341457883,1730905837173,-151.0,0.00035578,7]
[341457884,1730905837182,-226.132606,0.00035578,7]
[341457885,1730905837192,-226.132606,0.00035578,7]
[341457886,1730905837202,-151.0,0.00035578,7]
[341457887,1730905837211,-151.0,0.00035578,7]
[341457888,1730905837221,-151.0,0.00035578,7]
[341457889,1730905837232,-151.0,0.00035578,7]
[341457890,1730905837242,-151.0,0.00035578,7]
[341457891,1730905837252,-151.0,0.00035578,7]
[341457892,1730905837261,-151.0,0.00035578,7]
[341457893,1730905837271,-468.586094,0.00035578,7]
[341457894,1730905837281,-500.0,0.00035585,7]
[341457895,1730905837292,-500.0,0.00035585,7]
[341457896,1730905837302,-174.38833045,0.00035585,7]
[341457897,1730905837313,-218.0,0.00035585,2]
[341457898,1730905837322,-7348.55744545,0.00035585,2]
[341457912,1730905838454,-3996.61682,0.00035585,2]
[341457915,1730905838466,-30839.66503565,0.00035585,2]
[341457917,1730905838476,-151.0,0.00035585,7]
[341457919,1730905838486,-151.0,0.00035585,7]
[341457921,1730905838495,-1095.24138492,0.00035585,2]
[341457924,1730905838708,-316.17,0.00035585,2]
[341457925,1730905838720,-588.58861508,0.00035585,2]
[341457926,1730905838730,-151.0,0.00035585,7]
[341457927,1730905838739,-151.0,0.00035585,7]
[341457928,1730905838749,-151.0,0.00035585,7]
[341457929,1730905838758,-151.0,0.00035585,7]
[341457930,1730905838768,-151.0,0.00035585,7]
[341457931,1730905838778,-152.84008,0.00035585,7]
[341457932,1730905838790,-151.0,0.00035585,7]
[341457933,1730905838800,-151.0,0.00035585,7]
[341457934,1730905838809,-151.0,0.00035585,7]
[341457935,1730905838819,-158.229751,0.00035585,7]
[341457936,1730905838829,-151.0,0.00035585,7]
[341457937,1730905838838,-151.0,0.00035585,7]
[341457938,1730905838848,-151.0,0.00035585,7]
[341457939,1730905838858,-162.695962,0.00035585,7]
[341457940,1730905838867,-162.695962,0.00035585,7]
[341457941,1730905838877,-1692.30282982,0.00035586,2]
[341457942,1730905838891,-37010.14324801,0.00035586,2]
[341457943,1730905838938,-45667.23252427,0.00035586,2]
[341457944,1730905838948,-218.43027305,0.00035586,2]
[341457945,1730905838957,-2000.0,0.00035586,2]
[341457946,1730905838967,-652.7737,0.00035586,2]
[341457947,1730905838977,-203.233166,0.00035586,7]
[341457948,1730905838987,-151.0,0.00035586,7]
[341457949,1730905838997,-151.0,0.00035586,7]
[341457950,1730905839006,-151.0,0.00035586,7]
[341457951,1730905839016,-151.0,0.00035586,7]
[341457952,1730905839025,-151.0,0.00035586,7]
[341457953,1730905839034,-226.132606,0.00035586,7]
[341457954,1730905839044,-226.132606,0.00035586,7]
[341457955,1730905839053,-151.0,0.00035586,7]
[341457956,1730905839063,-151.0,0.00035586,7]
[341457957,1730905839071,-151.0,0.00035586,7]
[341457958,1730905839080,-151.0,0.00035586,7]
[341457959,1730905839089,-151.0,0.00035586,7]
[341457960,1730905839099,-151.0,0.00035586,7]
[341457961,1730905839108,-468.586094,0.00035586,7]
[341457962,1730905839118,-151.0,0.00035586,7]
[341457963,1730905839127,-220.777536,0.00035586,7]
[341457964,1730905839136,-151.0,0.00035586,7]
[341457965,1730905839145,-151.0,0.00035586,7]
[341457966,1730905839155,-284.409216,0.00035586,7]
[341457967,1730905839164,-151.0,0.00035586,7]
[341457969,1730905839174,-199.779677,0.00035586,7]
[341457971,1730905839183,-151.0,0.00035586,7]
[341457973,1730905839192,-2306.22203,0.00035586,2]
[341457975,1730905839201,-152.247136,0.00035586,7]
[341457977,1730905839210,-151.0,0.00035586,7]
[341457979,1730905839224,-151.0,0.00035586,7]
[341457980,1730905839234,-151.0,0.00035586,7]
[341457981,1730905839243,-42184.8393011,0.00035586,2]
[341457982,1730905839252,-151.0,0.00035587,7]
[341457983,1730905839262,-168739.357204,0.00035596,2]
[341457984,1730905839272,-190245.773697,0.00035596,2]
[341457985,1730905839281,-197.603572,0.00035596,7]
[341457986,1730905839291,-151.0,0.00035596,7]
[341457987,1730905839300,-151.0,0.00035596,7]
[341457988,1730905839310,-260.697947,0.00035596,7]
[341457989,1730905839319,-151.686191,0.00035596,7]
[341457990,1730905839329,-151.0,0.00035596,7]
[341457991,1730905839339,-151.0,0.00035596,7]
[341457992,1730905839348,-151.0,0.00035596,7]
[341457993,1730905839358,-151.0,0.00035596,7]
[341457994,1730905839367,-151.0,0.00035596,7]
[341457995,1730905839377,-151.0,0.00035596,7]
[341457996,1730905839387,-151.0,0.00035596,7]
[341457997,1730905839396,-151.0,0.00035596,7]
[341457998,1730905839405,-151.0,0.00035596,7]
[341457999,1730905839415,-157.429766,0.00035596,7]
[341458000,1730905839424,-151.0,0.00035596,7]
[341458001,1730905839434,-158.621432,0.00035596,7]
[341458002,1730905839443,-157.743898,0.00035596,7]
[341458003,1730905839452,-226.132606,0.00035596,7]
[341458004,1730905839462,-226.132606,0.00035596,7]
[341458005,1730905839471,-226.132606,0.00035596,7]
[341458006,1730905839481,-226.132606,0.00035596,7]
[341458007,1730905839491,-151.0,0.00035596,7]
[341458008,1730905839501,-151.0,0.00035596,7]
[341458009,1730905839511,-151.0,0.00035596,7]
[341458010,1730905839522,-151.0,0.00035596,7]
[341458011,1730905839533,-194.950865,0.00035596,7]
[341458012,1730905839544,-151.0,0.00035596,7]
[341458013,1730905839559,-151.0,0.00035596,7]
[341458014,1730905839568,-151.0,0.00035596,7]
[341458015,1730905839578,-151.0,0.00035596,7]
[341458016,1730905839587,-151.0,0.00035596,7]
[341458017,1730905839597,-273.944917,0.00035596,7]
[341458018,1730905839607,-151.0,0.00035596,7]
[341458019,1730905839617,-151.0,0.00035596,7]
[341458020,1730905839626,-151.0,0.00035596,7]
[341458021,1730905839636,-151.0,0.00035596,7]
[341458022,1730905839645,-151.0,0.00035596,7]
[341458023,1730905839655,-151.0,0.00035596,7]
[341458024,1730905839664,-468.586094,0.00035596,7]
[341458025,1730905839674,-468.586094,0.00035596,7]
[341458026,1730905839684,-162.695962,0.00035596,7]
[341458027,1730905839695,-162.695962,0.00035596,7]
[341458028,1730905839705,-162.695962,0.00035596,7]
[341458029,1730905839715,-162.695962,0.00035596,7]
[341458030,1730905839725,-151.0,0.00035596,7]
[341458031,1730905839735,-151.0,0.00035596,7]
[341458032,1730905839744,-151.0,0.00035596,7]
[341458033,1730905839755,-151.0,0.00035596,7]
[341458034,1730905839765,-151.0,0.00035596,7]
[341458035,1730905839775,-151.0,0.00035596,7]
[341458036,1730905839784,-151.0,0.00035596,7]
[341458037,1730905839796,-151.0,0.00035596,7]
[341458038,1730905839806,-206.556155,0.00035596,7]
[341458039,1730905839815,-206.556155,0.00035596,7]
[341458040,1730905839825,-206.556155,0.00035596,7]
[341458041,1730905839834,-206.556155,0.00035596,7]
[341458042,1730905839844,-151.0,0.00035596,7]
[341458043,1730905839853,-151.0,0.00035596,7]
[341458044,1730905839863,-151.0,0.00035596,7]
[341458045,1730905839872,-151.0,0.00035596,7]
[341458046,1730905839881,-1627.683938,0.00035596,7]
[341458047,1730905839893,-1627.683938,0.00035596,7]
[341458048,1730905839902,-1627.683938,0.00035596,7]
[341458049,1730905839910,-1627.683938,0.00035596,7]
[341458050,1730905839924,-151.0,0.00035596,7]
[341458051,1730905839934,-233.450898,0.00035596,7]
[341458052,1730905839950,-172.075314,0.00035596,7]
[341458053,1730905839960,-172.075314,0.00035596,7]
[341458054,1730905839970,-172.075314,0.00035596,7]
[341458055,1730905839980,-172.075314,0.00035596,7]
[341458056,1730905839990,-345.612812,0.00035596,7]
[341458057,1730905839999,-345.612812,0.00035596,7]
[341458058,1730905840009,-151.0,0.00035596,7]
[341458059,1730905840019,-151.0,0.00035596,7]
[341458060,1730905840028,-345.612812,0.00035596,7]
[341458061,1730905840039,-345.612812,0.00035596,7]
[341458062,1730905840048,-151.0,0.00035596,7]
[341458063,1730905840058,-151.0,0.00035596,7]
[341458064,1730905840067,-151.0,0.00035596,7]
[341458065,1730905840078,-151.0,0.00035596,7]
[341458066,1730905840088,-398.0,0.000356,21]
[341458067,1730905840100,-1200.0,0.000356,12]
[341458068,1730905840110,-428.87529335,0.00035605,2]
[341458069,1730905840119,-505.0,0.00035606,14]
[341458070,1730905840129,-295293.875107,0.00035606,2]
[341458071,1730905840139,-161474.48738108,0.00035606,2]
[341458072,1730905840157,-408.7556411,0.00035606,2]
[341458079,1730905840671,-180.55,0.00035186,2]
[341458080,1730905840681,-500.0,0.00035318,7]
[341458081,1730905840691,-443.54925931,0.00035318,7]
[341458082,1730905840701,-1822.54074069,0.00035606,2]
[341458083,1730905840730,-262.12,0.00035606,2]
[341458084,1730905840742,-330.99857377,0.00035606,2]
[341458345,1730905843464,-150.0,0.00035365,2]
[341458347,1730905843474,-150.0,0.00035371,2]
[341458349,1730905843484,-150.0,0.00035408,2]
[341458351,1730905843495,-150.0,0.00035414,2]
[341458353,1730905843505,-150.0,0.00035417,2]
[341458354,1730905843515,-150.0,0.00035427,2]
[341458356,1730905843525,-93.99315807,0.00035432,2]
[341458441,1730905844272,-56.00684193,0.00035432,2]
[341458443,1730905844281,-150.0,0.00035454,2]
[341458445,1730905844292,-150.0,0.00035459,2]
[341458447,1730905844302,-150.0,0.0003548,2]
[341458449,1730905844314,-150.0,0.00035501,2]
[341458451,1730905844326,-150.0,0.00035528,2]
[341458453,1730905844336,-150.0,0.00035551,2]
[341458455,1730905844346,-150.0,0.00035572,2]
[341458457,1730905844356,-150.0,0.00035572,2]
[341458459,1730905844366,-7733.81183909,0.00035606,2]
[341458461,1730905844378,-7680.0,0.00035606,2]
[341458473,1730905844586,-20.0697431,0.00035606,2]
[341458475,1730905844597,-73972.49374872,0.00035606,2]
[341458478,1730905844617,-5992.80786109,0.00035606,2]
[341458481,1730905844629,-11104.82676002,0.00035606,2]
[341458483,1730905844644,-2568.14588365,0.00035606,2]
[341458674,1730905846424,-285.91686224,0.00035605,2]
[341458677,1730905846434,-363.77370164,0.00035606,2]
[341458710,1730905846811,-1841.289236,0.00035606,2]
[341458713,1730905846830,-2577.4762,0.00035606,2]
[341459196,1730905853710,173.14,0.00015342,2]
[341459197,1730905855319,524.2235,0.0003,2]
[341459198,1730905855552,524.2235,0.00030256,2]
[341459199,1730905857081,221.8215,0.00020002,2]
[341459200,1730905861523,239.0,0.00019725,2]
[341459201,1730905861628,150.0,0.00018123,2]
[341459202,1730905867829,500.0,0.00021918,30]
[341459203,1730905868280,500.0,0.00021918,30]
[341459204,1730905868924,500.0,0.00021918,30]
[341459205,1730905869409,500.0,0.00021918,30]
[341459206,1730905869865,500.0,0.00021918,30]
[341459207,1730905870348,500.0,0.00021918,30]
[341459208,1730905871135,500.0,0.00021918,30]
[341459209,1730905871402,500.0,0.00021918,30]
[341459210,1730905871865,93.64949453,0.00021918,30]
[341459211,1730905871885,406.35050547,0.00021918,30]
[341459212,1730905872629,500.0,0.00021918,30]
[341459213,1730905873046,241.78350104,0.00021918,30]
[341459216,1730906411393,159.19,0.00015342,2]
[341459226,1730906650183,150.0,0.00020301,2]
[341459228,1730906708510,444361.53310091,0.00016,2]
[341459229,1730906746136,-283.42695575,0.00021918,2]
[341459230,1730906746157,-1571.6826258,0.00025,2]
[341459231,1730906756389,921.82960735,0.0001892,2]
[341459233,1730906831099,-218.62817137,0.00023999,2]
[341459234,1730906849103,-442.38819825,0.00022,2]
[341459235,1730906853093,-420.48482897,0.00022,2]
[341459238,1730906927590,743.41744628,0.00018,2]
[341459239,1730906927833,6000.0,0.0002029,2]
[341459242,1730906942347,300.0,0.00019725,2]
[341459243,1730906950136,-469.21894559,0.00022,2]
[341459244,1730906950173,-434.937297,0.00023802,2]
[341459245,1730906950194,-1523.76086826,0.00023922,2]
[341459246,1730906950215,-4093.75584704,0.00023999,2]
[341459247,1730906950237,-626.43524688,0.00024,2]
[341459248,1730906950262,-6619.6616465,0.0002445,2]
[341459249,1730906950282,-161.05,0.00024789,2]
[341459250,1730906950304,-5827.34663251,0.00025,2]
[341459251,1730906950325,-1921.33,0.00025,2]
[341459252,1730906950346,-1472.12220961,0.00025,2]
[341459253,1730906950365,-2042.18,0.00025,2]
[341459254,1730906950387,-2024.0,0.000268,2]
[341459255,1730906950408,-200.0,0.000288,2]
[341459256,1730906950428,-1331.28620459,0.00028849,2]
[341459257,1730906950450,-589.19958584,0.00029,2]
[341459258,1730906950469,-23140.36209434,0.000299,2]
[341459259,1730906950490,-447.0295,0.0003,2]
[341459260,1730906950510,-499.999999,0.0003,2]
[341459261,1730906950531,-274.3446133,0.0003,30]
[341459262,1730906950553,-447.0295,0.00030186,2]
[341459263,1730906950572,-1493.21,0.00030671,120]
[341459264,1730906950592,-10704.76562073,0.00031,2]
[341459265,1730906950612,-325.26,0.00031,2]
[341459266,1730906950635,-164.542,0.0003129,2]
[341459267,1730906950656,-10741.11,0.0003136,2]
[341459268,1730906950676,-1599.58,0.00031499,2]
[341459269,1730906950697,-481.33,0.00031854,10]
[341459270,1730906950716,-20157.0,0.00031864,2]
[341459271,1730906950737,-10741.11,0.00031864,2]
[341459272,1730906950757,-374.0,0.00031893,2]
[341459273,1730906950777,-2718.61,0.00031894,2]
[341459274,1730906950796,-1933.06,0.00031894,2]
[341459275,1730906950817,-1005.14,0.00032225,2]
[341459276,1730906950837,-158.142,0.00032225,2]
[341459277,1730906950856,-158.142,0.00032225,2]
[341459278,1730906950876,-158.142,0.00032225,2]
[341459279,1730906950898,-158.142,0.00032225,2]
[341459280,1730906950918,-158.142,0.00032225,2]
[341459281,1730906950937,-158.142,0.00032225,2]
[341459282,1730906950956,-158.142,0.00032225,2]
[341459283,1730906950976,-158.142,0.00032225,2]
[341459284,1730906950996,-158.142,0.00032225,2]
[341459285,1730906951017,-10741.11,0.00032368,2]
[341459286,1730906951038,-200.0,0.00032438,2]
[341459287,1730906951058,-223.89,0.00032536,2]
[341459288,1730906951078,-250.0,0.00032577,2]
[341459289,1730906951098,-2707.26425051,0.00032753,2]
[341459290,1730906951118,-1068.66,0.00032799,2]
[341459291,1730906951140,-500.0,0.0003284,2]
[341459292,1730906951160,-250.0,0.0003284,2]
[341459293,1730906951181,-500.0,0.0003284,2]
[341459294,1730906951201,-380.10114136,0.0003284,2]
[341459295,1730906951222,-23900.0,0.00032841,2]
[341459296,1730906951242,-434.51,0.00032865,120]
[341459297,1730906951267,-2587.56034253,0.00032871,2]
[341459302,1730906963085,-200.0,0.00030647,2]
[341459303,1730906973417,-8153.54965747,0.00032871,2]
[341459304,1730906973701,-167.00724587,0.00032877,2]
[341459305,1730906973722,-97.58541992,0.000329,2]
[341459306,1730906973749,158.95,0.00015342,2]
[341459307,1730906973791,158.95,0.00030548,2]
[341459312,1730906991718,250.0,0.00021,2]
[341459313,1730906992823,300.0,0.00023,2]
[341459314,1730906994382,350.0,0.00025,2]
[341459315,1730906995048,400.0,0.00027,2]
[341459316,1730906996135,450.0,0.00029,2]
[341459317,1730906997234,500.0,0.00031,2]
[341459341,1730907031560,-202.41458008,0.000329,2]
[341459343,1730907031570,-397.74594403,0.00032994,2]
[341459347,1730907031602,-1147.61405597,0.00032994,2]
[341459348,1730907031612,-492.11852285,0.00033,2]
[341459349,1730907031623,-992.32592759,0.00033,2]
[341459350,1730907031646,-457.33230946,0.00033,2]
[341459351,1730907031789,-1450.0,0.00033,2]
[341459352,1730907031801,-10473.93559591,0.00033,2]
[341459353,1730907031811,-550.0,0.00033,2]
[341459354,1730907031821,-419.51,0.00033002,120]
[341459355,1730907031831,-965.05,0.00033129,2]
[341459356,1730907031840,-1636.362,0.00033207,2]
[341459357,1730907031849,-6435.66,0.00033208,2]
[341459358,1730907031859,-150.99,0.00033208,2]
[341459359,1730907031869,-1244.84,0.00033228,2]
[341459360,1730907031878,-1022.42,0.00033268,2]
[341459361,1730907031888,-1042.53,0.0003327,2]
[341459362,1730907031897,-250.0,0.0003327,2]
[341459363,1730907031907,-910.69,0.00033285,2]
[341459364,1730907031917,-169.46,0.00033303,120]
[341459365,1730907031927,-200.0,0.00033359,7]
[341459366,1730907031937,-10741.11,0.00033375,2]
[341459367,1730907031949,-250.0,0.00033417,2]
[341459368,1730907031959,-6674.39,0.00033417,2]
[341459369,1730907031968,-159.12,0.00033526,2]
[341459370,1730907031978,-164.568,0.000337,2]
[341459371,1730907031987,-786.74,0.00033753,3]